bitfinex-derivatives/quotes_BTCF0:USTF0_20250711
["timestamp","ask_amount","ask_price","bid_price","bid_amount"]
[1752273423638,0.01775376,117630.0,117620.0,1.57477793]
[1752273427954,1.08828719,117630.0,117620.0,1.0358037]
[1752273428257,1.34062053,117630.0,117620.0,0.50504]
[1752273428656,1.40162631,117630.0,117620.0,0.50504]
[1752273428953,1.23167711,117630.0,117620.0,0.1750036]
[1752273429153,1.21412335,117630.0,117620.0,0.1750036]
[1752273431956,0.78417534,117630.0,117620.0,0.1750036]
[1752273432259,1.2141548,117630.0,117620.0,0.5358036]
[1752273433156,0.84521257,117630.0,117620.0,0.5358036]
[1752273433361,0.84521257,117630.0,117620.0,0.90474583]
[1752273433362,0.40452723,117630.0,117620.0,0.90474583]
[1752273433561,0.28171723,117630.0,117620.0,0.90474583]
[1752273434358,0.22068,117630.0,117620.0,0.5358036]
[1752273434761,0.22068,117630.0,117620.0,1.35066487]
[1752273439969,0.22068,117630.0,117620.0,1.6964036]
[1752273439970,0.34349,117630.0,117620.0,1.6964036]
[1752273440973,0.34349,117630.0,117620.0,1.1964036]
[1752273443971,0.34349,117630.0,117620.0,0.5358036]
[1752273444175,0.34349,117630.0,117620.0,1.51114487]
[1752273444674,0.34349,117630.0,117620.0,1.1962836]
[1752273444877,0.36108977,117630.0,117620.0,1.1962836]
[1752273447473,1.11663638,117630.0,117620.0,1.1960436]
[1752273447786,1.28658558,117630.0,117620.0,1.1960436]
[1752273447978,1.34762281,117630.0,117620.0,1.1960036]
[1752273448179,1.28658558,117630.0,117620.0,0.8352036]
[1752273448379,1.34762281,117630.0,117620.0,0.8352036]
[1752273448581,1.34762281,117630.0,117620.0,0.1750036]
[1752273448886,1.70842281,117630.0,117620.0,0.00504]
[1752273449279,1.70842281,117630.0,117610.0,0.8303278]
[1752273449280,0.2979836,117620.0,117610.0,0.8303278]
[1752273449580,1.41925712,117620.0,117610.0,0.8301278]
[1752273449882,1.46174802,117620.0,117600.0,0.66021191]
[1752273450073,0.74472541,117610.0,117600.0,1.27783421]
[1752273450276,0.76252518,117610.0,117600.0,1.27763421]
[1752273450473,1.12082638,117610.0,117600.0,1.27763421]
[1752273451582,1.12082638,117610.0,117600.0,0.61751421]
[1752273451884,1.12082638,117610.0,117600.0,1.28063421]
[1752273453184,1.1818959,117610.0,117600.0,1.28363421]
[1752273453485,1.12082638,117610.0,117600.0,1.24113731]
[1752273453786,1.1818959,117610.0,117600.0,1.24113731]
[1752273454581,0.80596511,117610.0,117600.0,1.24013731]
[1752273455283,0.80596511,117610.0,117600.0,1.23813731]
[1752273455587,0.80596511,117610.0,117600.0,1.23913731]
[1752273456187,0.67794511,117610.0,117600.0,1.55399858]
[1752273456687,0.67794511,117610.0,117600.0,1.23913731]
[1752273456888,0.67794511,117610.0,117600.0,1.55399858]
[1752273457485,0.80596511,117610.0,117600.0,1.55399858]
[1752273457978,0.80596511,117610.0,117600.0,1.23913731]
[1752273459288,0.80596511,117610.0,117600.0,1.23613731]
[1752273459490,0.80596511,117610.0,117600.0,1.23813731]
[1752273459890,1.03844224,117610.0,117600.0,1.23813731]
[1752273460090,1.12082638,117610.0,117600.0,1.23813731]
[1752273462087,1.12082638,117610.0,117600.0,0.57801731]
[1752273462282,1.12082638,117610.0,117600.0,1.23753731]
[1752273463092,1.12082638,117610.0,117600.0,0.57801731]
[1752273463292,1.12082638,117610.0,117600.0,1.23749731]
[1752273463893,1.12082638,117610.0,117600.0,0.87669731]
[1752273464291,1.29080448,117610.0,117600.0,0.83421321]
[1752273464793,1.351874,117610.0,117600.0,0.83421321]
[1752273465392,1.351874,117610.0,117600.0,0.00474061]
[1752273465393,2.011274,117610.0,117600.0,0.00474061]
[1752273465690,2.011274,117610.0,117600.0,0.17473321]
[1752273466395,2.011274,117610.0,117600.0,0.00474061]
[1752273466991,2.011274,117610.0,117600.0,0.17473321]
[1752273467893,2.011274,117610.0,117600.0,0.00474061]
[1752273468289,1.6529728,117610.0,117600.0,0.00474061]
[1752273468496,2.011274,117610.0,117600.0,0.17473321]
[1752273469195,2.011274,117610.0,117600.0,0.00474061]
[1752273470696,2.011274,117610.0,117600.0,0.00274061]
[1752273471093,2.372074,117610.0,117600.0,0.00274061]
[1752273471297,0.5100026,117600.0,117590.0,0.361]
[1752273471496,0.5100026,117600.0,117580.0,1.1901703]
[1752273471497,0.319057,117590.0,117580.0,1.1901703]
[1752273471796,0.92486218,117590.0,117580.0,0.3608]
[1752273471996,1.94212338,117590.0,117580.0,0.3608]
[1752273472498,1.94212338,117590.0,117580.0,0.5308215]
[1752273472898,1.77211638,117590.0,117580.0,0.5308215]
[1752273473093,1.11315638,117590.0,117580.0,0.5308215]
[1752273473298,1.51824463,117590.0,117580.0,0.5308215]
[1752273473495,1.45717511,117590.0,117580.0,0.5308215]
[1752273473696,1.77203638,117590.0,117580.0,0.5308215]
[1752273474198,1.8331059,117590.0,117580.0,0.5318215]
[1752273474396,2.0031129,117590.0,117580.0,0.5318215]
[1752273475401,2.0031129,117590.0,117580.0,0.5338215]
[1752273475601,2.02102056,117590.0,117580.0,0.5338215]
[1752273475904,1.85101356,117590.0,117580.0,0.5338215]
[1752273476098,1.85101356,117590.0,117580.0,0.5318215]
[1752273476297,1.85101356,117590.0,117580.0,0.5338215]
[1752273476498,1.85101356,117590.0,117580.0,0.5338615]
[1752273477499,1.19213356,117590.0,117580.0,0.5338615]
[1752273477699,0.43658695,117590.0,117580.0,0.84872277]
[1752273478004,0.25135743,117590.0,117580.0,1.50732277]
[1752273478904,0.37551743,117590.0,117580.0,1.50732277]
[1752273479902,0.37551743,117590.0,117580.0,1.1924615]
[1752273481002,0.37551743,117590.0,117580.0,1.50732277]
[1752273481204,0.37551743,117590.0,117580.0,0.84872277]
[1752273481404,0.37551743,117590.0,117580.0,1.50708277]
[1752273481608,0.37551743,117590.0,117580.0,1.1922215]
[1752273483702,0.35760977,117590.0,117580.0,1.1922215]
[1752273484905,0.35760977,117590.0,117580.0,1.1812216]
[1752273486609,0.35780298,117590.0,117580.0,1.1812216]
[1752273487809,1.03096545,117590.0,117580.0,1.1812216]
[1752273488010,1.28335659,117590.0,117580.0,0.5228616]
[1752273488204,2.59903659,117590.0,117580.0,0.5228616]
[1752273489008,2.66010611,117590.0,117580.0,0.5228616]
[1752273489609,2.66010611,117590.0,117580.0,0.00304]
[1752273489810,2.95983659,117590.0,117580.0,0.00304]
[1752273490203,3.03616907,117590.0,117580.0,0.00304]
[1752273490908,3.04500975,117590.0,117580.0,0.00304]
[1752273491404,3.04500975,117590.0,117580.0,4e-05]
[1752273491712,3.04500975,117590.0,117570.0,0.1702317]
[1752273491713,0.5100313,117580.0,117570.0,0.1702317]
[1752273491911,1.28337089,117580.0,117570.0,0.1700317]
[1752273492607,1.36838519,117580.0,117560.0,0.61776349]
[1752273492913,1.98914149,117570.0,117560.0,0.61776349]
[1752273493112,2.00693447,117570.0,117560.0,0.61756349]
[1752273493310,2.36523567,117570.0,117560.0,0.61756349]
[1752273494113,2.36523567,117570.0,117560.0,0.61956349]
[1752273495704,2.36523567,117570.0,117560.0,0.62056349]
[1752273496114,2.53527137,117570.0,117560.0,0.61856349]
[1752273496310,2.53527137,117570.0,117560.0,0.61956349]
[1752273497413,2.36523567,117570.0,117560.0,0.61956349]
[1752273497613,2.36528929,117570.0,117560.0,0.61956349]
[1752273498013,2.53532499,117570.0,117560.0,0.61956349]
[1752273498214,2.36528929,117570.0,117560.0,0.61956349]
[1752273498614,2.53532499,117570.0,117560.0,0.61956349]
[1752273501018,2.53532499,117570.0,117560.0,0.57705119]
[1752273501313,2.53532499,117570.0,117560.0,0.00370119]
[1752273501518,2.85018626,117570.0,117560.0,0.00370119]
[1752273501715,2.53532499,117570.0,117560.0,0.00370119]
[1752273501915,2.89612499,117570.0,117560.0,0.00370119]
[1752273502112,2.83515891,117570.0,117560.0,0.00370119]
[1752273502316,3.21917829,117570.0,117560.0,0.00370119]
[1752273502513,3.21917829,117570.0,117550.0,0.0002]
[1752273502514,1.13672274,117560.0,117550.0,0.0002]
[1752273502814,0.5070147,117550.0,117540.0,0.0002]
[1752273503025,0.33695,117530.0,117520.0,1.31685327]
[1752273503319,0.66965787,117530.0,117520.0,1.31685327]
[1752273504425,0.83975147,117530.0,117520.0,0.57512217]
[1752273504625,0.66965787,117530.0,117520.0,0.57512217]
[1752273505020,0.66965787,117530.0,117520.0,0.57812217]
[1752273505518,0.3547966,117530.0,117520.0,0.58012217]
[1752273505725,0.66965787,117530.0,117520.0,0.58012217]
[1752273506316,0.66965787,117530.0,117520.0,0.57812217]
[1752273506628,0.70369387,117530.0,117520.0,0.57916217]
[1752273506824,0.66965787,117530.0,117520.0,0.57916217]
[1752273507018,0.66965787,117530.0,117520.0,0.57716217]
[1752273507220,0.66965787,117530.0,117520.0,0.58087217]
[1752273507819,0.66965787,117530.0,117520.0,0.57716217]
[1752273508219,0.70369387,117530.0,117520.0,0.57716217]
[1752273508418,0.66965787,117530.0,117520.0,0.57716217]
[1752273509924,0.70369387,117530.0,117520.0,0.57716217]
[1752273510630,1.06199507,117530.0,117520.0,0.57716217]
[1752273515834,0.7471338,117530.0,117520.0,0.57716217]
[1752273516032,1.06199507,117530.0,117520.0,0.57725809]
[1752273517137,1.06199507,117530.0,117520.0,0.89582936]
[1752273517138,0.0178466,117530.0,117520.0,0.89582936]
[1752273517833,0.0178466,117530.0,117520.0,1.39582936]
[1752273520228,0.0178466,117530.0,117520.0,1.08096809]
[1752273520534,0.0178466,117530.0,117520.0,1.39582936]
[1752273522639,0.27391794,117540.0,117520.0,1.71069063]
[1752273522843,0.01776581,117540.0,117530.0,1.50438487]
[1752273523734,0.01776581,117540.0,117530.0,2.00438487]
[1752273524241,0.20796581,117540.0,117530.0,2.00438487]
[1752273524741,0.23078581,117540.0,117530.0,2.00438487]
[1752273525238,0.23078581,117540.0,117530.0,1.0308936]
[1752273525239,0.70360908,117540.0,117530.0,1.0308936]
[1752273525443,1.28034152,117540.0,117530.0,1.6855336]
[1752273525632,1.19795738,117540.0,117530.0,1.6854936]
[1752273525833,0.79540115,117540.0,117530.0,1.6854936]
[1752273526044,1.11026242,117540.0,117530.0,1.6854936]
[1752273526435,0.71301701,117540.0,117530.0,2.00406487]
[1752273526640,0.79540115,117540.0,117530.0,2.00406487]
[1752273526940,0.79540115,117540.0,117530.0,1.50406487]
[1752273527141,0.79540115,117540.0,117530.0,1.1892036]
[1752273527540,0.79540115,117540.0,117530.0,0.5346036]
[1752273527733,0.79540115,117540.0,117530.0,1.1890836]
[1752273529046,0.79540115,117540.0,117530.0,1.50394487]
[1752273530738,0.35471581,117540.0,117530.0,1.50394487]
[1752273533148,0.35471581,117540.0,117530.0,1.1890836]
[1752273533347,0.35471581,117540.0,117530.0,1.50394487]
[1752273534847,0.35471581,117540.0,117530.0,1.1890836]
[1752273535143,0.35471581,117540.0,117530.0,1.1853736]
[1752273535447,1.17116036,117540.0,117530.0,0.8236936]
[1752273535846,1.34123946,117540.0,117530.0,0.8236936]
[1752273536340,1.17116036,117540.0,117530.0,0.8236936]
[1752273536538,1.11226242,117540.0,117530.0,0.8236936]
[1752273536739,1.11226242,117540.0,117530.0,1.1844936]
[1752273536945,1.17316036,117540.0,117530.0,0.8236936]
[1752273537146,1.17416036,117540.0,117530.0,0.8236936]
[1752273537544,1.17416036,117540.0,117530.0,1.1844936]
[1752273537738,1.17316036,117540.0,117530.0,0.8236936]
[1752273537937,1.17416036,117540.0,117530.0,0.8236936]
[1752273538145,1.17316036,117540.0,117530.0,0.8236936]
[1752273538850,1.17316036,117540.0,117530.0,1.1844936]
[1752273539148,1.17316036,117540.0,117530.0,0.8236936]
[1752273539546,1.34323946,117540.0,117530.0,0.1700936]
[1752273539849,1.34323946,117540.0,117530.0,0.8232136]
[1752273540653,1.34323946,117540.0,117530.0,0.1700936]
[1752273540850,1.14395036,117540.0,117530.0,0.8232136]
[1752273541249,1.16800036,117540.0,117530.0,0.8232136]
[1752273541453,1.27718152,117540.0,117530.0,0.8232136]
[1752273542156,1.10710242,117540.0,117530.0,0.8232136]
[1752273542550,0.79224115,117540.0,117530.0,0.8232136]
[1752273542750,1.10710242,117540.0,117530.0,0.8232136]
[1752273543049,1.27718152,117540.0,117530.0,0.8232136]
[1752273543855,1.10710242,117540.0,117530.0,0.8232136]
[1752273544356,1.27718152,117540.0,117530.0,0.8232136]
[1752273545750,1.353514,117540.0,117530.0,0.8232136]
[1752273546149,1.27718152,117540.0,117530.0,0.8232136]
[1752273547851,1.353514,117540.0,117530.0,0.65312]
[1752273548556,0.4988936,117530.0,117520.0,0.53294579]
[1752273548752,1.33325325,117530.0,117520.0,0.00183769]
[1752273548956,1.58706729,117530.0,117520.0,0.00183769]
[1752273549159,1.94786729,117530.0,117520.0,0.00183769]
[1752273549458,1.95671793,117530.0,117520.0,0.00183769]
[1752273549660,1.3485385,117530.0,117520.0,0.17194579]
[1752273549957,1.27220602,117530.0,117520.0,0.17194579]
[1752273550652,0.95734475,117530.0,117520.0,0.17194579]
[1752273550858,1.27220602,117530.0,117520.0,0.17194579]
[1752273551058,1.27220602,117530.0,117520.0,0.00183769]
[1752273552666,1.18982188,117530.0,117520.0,0.17194579]
[1752273552962,1.27220602,117530.0,117520.0,0.17194579]
[1752273554361,1.27220602,117530.0,117520.0,0.00183769]
[1752273554566,1.2900206,117530.0,117520.0,0.00183769]
[1752273555167,1.2900206,117530.0,117520.0,0.17194579]
[1752273555466,1.36635308,117530.0,117520.0,0.17194579]
[1752273556767,1.2900206,117530.0,117520.0,0.00183769]
[1752273557267,1.2900206,117530.0,117520.0,0.17194579]
[1752273557467,1.36635308,117530.0,117520.0,0.17194579]
[1752273558469,1.3485385,117530.0,117520.0,0.17194579]
[1752273559472,1.3485385,117530.0,117520.0,0.00183769]
[1752273559672,1.3485385,117530.0,117520.0,0.17194579]
[1752273559972,1.3485385,117530.0,117520.0,0.00183769]
[1752273561369,1.7093385,117530.0,117520.0,0.00183769]
[1752273561774,1.7093385,117530.0,117520.0,0.17194579]
[1752273561975,1.72737833,117530.0,117520.0,0.00183769]
[1752273562176,1.36657833,117530.0,117520.0,0.17194579]
[1752273562478,1.3485385,117530.0,117520.0,0.17194579]
[1752273562666,1.3485385,117530.0,117520.0,0.00183769]
[1752273562977,1.7093385,117530.0,117520.0,0.00183769]
[1752273563670,1.3485385,117530.0,117520.0,0.00183769]
[1752273563873,1.7093385,117530.0,117520.0,0.00183769]
[1752273564270,1.3485385,117530.0,117520.0,0.00183769]
[1752273564476,0.5199381,117520.0,117510.0,0.0002]
[1752273564774,0.34983,117510.0,117500.0,0.6587226]
[1752273564971,1.12314242,117510.0,117500.0,0.6585226]
[1752273565577,0.80828115,117510.0,117500.0,0.6585226]
[1752273566083,1.18413914,117510.0,117500.0,0.6585226]
[1752273566880,1.18413914,117510.0,117500.0,0.6605226]
[1752273567381,1.18442692,117510.0,117500.0,0.6605226]
[1752273567773,1.25359855,117510.0,117500.0,0.6605226]
[1752273569483,1.42372115,117510.0,117500.0,0.3628]
[1752273569687,1.42372115,117510.0,117500.0,0.002]
[1752273569981,1.78452115,117510.0,117500.0,0.002]
[1752273570179,0.302767,117500.0,117490.0,0.65028]
[1752273570373,0.5199815,117490.0,117480.0,0.57539464]
[1752273570577,0.91395466,117490.0,117480.0,1.22519464]
[1752273570784,1.27225586,117490.0,117480.0,1.22519464]
[1752273571082,1.30630186,117490.0,117480.0,1.22519464]
[1752273571284,1.35464,117490.0,117480.0,1.22519464]
[1752273571582,1.35464,117490.0,117480.0,1.18253624]
[1752273571784,1.35464,117490.0,117480.0,1.01238234]
[1752273571981,1.2935817,117490.0,117480.0,1.01238234]
[1752273572182,1.2935817,117490.0,117480.0,1.18254834]
[1752273572879,1.30214213,117490.0,117480.0,1.18254834]
[1752273573085,1.30214213,117490.0,117480.0,1.18354834]
[1752273574085,1.2935817,117490.0,117480.0,0.53366834]
[1752273574290,1.1234302,117490.0,117480.0,1.18350834]
[1752273574787,1.19976268,117490.0,117480.0,1.18350834]
[1752273574983,0.75907734,117490.0,117480.0,1.18350834]
[1752273575286,0.80856893,117490.0,117480.0,1.18350834]
[1752273575487,1.1234302,117490.0,117480.0,1.18350834]
[1752273577382,1.2935817,117490.0,117480.0,0.53366834]
[1752273577588,1.2935817,117490.0,117480.0,1.18294834]
[1752273577990,1.2935817,117490.0,117480.0,1.01278234]
[1752273579089,1.2935817,117490.0,117480.0,1.01178234]
[1752273579493,1.2935817,117490.0,117480.0,1.18194834]
[1752273579885,1.2935817,117490.0,117480.0,0.53266834]
[1752273580185,1.2935817,117490.0,117480.0,0.36250234]
[1752273580391,1.05605291,117490.0,117480.0,0.53266834]
[1752273580589,1.37091418,117490.0,117480.0,0.53266834]
[1752273580787,1.2945817,117490.0,117480.0,0.53266834]
[1752273580977,1.37091418,117490.0,117480.0,0.53266834]
[1752273582390,1.37091418,117490.0,117480.0,0.36250234]
[1752273582699,1.28853004,117490.0,117480.0,0.36250234]
[1752273582995,1.2945817,117490.0,117480.0,0.53266834]
[1752273584497,1.2945817,117490.0,117480.0,0.36250234]
[1752273587594,0.170166,117480.0,117470.0,1.2223915]
[1752273587793,0.99577763,117480.0,117470.0,1.2221915]
[1752273588090,1.35407883,117480.0,117470.0,0.3608]
[1752273588295,0.5195005,117470.0,117460.0,0.361]
[1752273588491,1.36297627,117470.0,117460.0,0.3608]
[1752273588690,1.090661,117470.0,117460.0,0.170195]
[1752273588896,0.323355,117460.0,117450.0,1.2643804]
[1752273589086,0.7432283,117460.0,117450.0,1.2641804]
[1752273589287,1.1015295,117460.0,117450.0,1.1790895]
[1752273589484,1.1015295,117460.0,117450.0,0.5310095]
[1752273589690,1.35410864,117460.0,117450.0,1.1790095]
[1752273589897,1.35410864,117460.0,117450.0,1.0088]
[1752273590092,1.35410864,117460.0,117450.0,1.1790094]
[1752273590296,1.19925268,117460.0,117450.0,1.1790094]
[1752273590594,1.19925268,117460.0,117450.0,0.5310094]
[1752273590794,1.19925268,117460.0,117450.0,1.1788894]
[1752273591297,1.1229202,117460.0,117450.0,1.1798894]
[1752273592000,1.2931152,117460.0,117450.0,1.1818894]
[1752273592297,1.1229202,117460.0,117450.0,1.1818894]
[1752273592598,1.9409952,117460.0,117450.0,0.5340094]
[1752273593201,1.9409952,117460.0,117450.0,0.5320094]
[1752273593899,1.9409952,117460.0,117450.0,0.1702094]
[1752273594399,2.01732768,117460.0,117450.0,0.1702094]
[1752273594802,1.9409952,117460.0,117450.0,0.1702094]
[1752273595800,1.7708002,117460.0,117450.0,0.1702094]
[1752273596002,1.45593893,117460.0,117450.0,0.5310094]
[1752273596298,0.42833047,117460.0,117450.0,0.84958067]
[1752273597197,0.42833047,117460.0,117450.0,0.5347194]
[1752273600807,0.27517047,117460.0,117450.0,0.84958067]
[1752273601008,0.07901047,117460.0,117450.0,0.84958067]
[1752273601199,0.01805359,117460.0,117450.0,0.84958067]
[1752273601404,0.21421359,117460.0,117450.0,0.84958067]
[1752273602908,0.23762359,117460.0,117450.0,0.84958067]
[1752273605105,0.29858047,117460.0,117450.0,0.84958067]
[1752273605311,0.30502548,117490.0,117480.0,0.1701659]
[1752273605512,0.32843548,117490.0,117480.0,2.50297717]
[1752273605702,0.19816,117490.0,117480.0,2.50297717]
[1752273605908,0.002,117490.0,117480.0,2.50297717]
[1752273606408,0.22457,117490.0,117480.0,2.1881159]
[1752273606712,0.35432,117490.0,117480.0,2.1881159]
[1752273606910,0.35932,117490.0,117480.0,2.1881159]
[1752273607120,0.67418127,117490.0,117480.0,1.5378859]
[1752273607411,1.06452847,117490.0,117480.0,1.5378859]
[1752273607606,1.02548247,117490.0,117480.0,0.8917659]
[1752273607803,1.10786661,117490.0,117480.0,1.5378459]
[1752273608007,1.10986661,117490.0,117480.0,1.5378459]
[1752273608603,0.35432,117490.0,117480.0,1.5415559]
[1752273608803,0.35432,117490.0,117480.0,1.85641717]
[1752273609008,0.22457,117490.0,117480.0,1.85641717]
[1752273610106,0.005,117490.0,117480.0,1.85641717]
[1752273610313,0.005,117490.0,117480.0,2.02664917]
[1752273610514,0.005,117490.0,117480.0,2.52664917]
[1752273610710,0.005,117490.0,117480.0,2.53517727]
[1752273610912,0.005,117490.0,117480.0,2.59010247]
[1752273611606,0.005,117490.0,117480.0,2.65828101]
[1752273611908,1e-07,117490.0,117480.0,2.65828101]
[1752273612116,0.21957,117510.0,117500.0,0.173847]
[1752273612317,0.21957,117510.0,117500.0,1.91079347]
[1752273612614,0.36681195,117520.0,117510.0,0.1738325]
[1752273612815,0.80749729,117520.0,117510.0,0.5346325]
[1752273613216,0.36681195,117520.0,117510.0,0.5346325]
[1752273613416,0.36681195,117520.0,117510.0,0.90441897]
[1752273613715,0.35132,117520.0,117510.0,0.90441897]
[1752273615208,0.35132,117520.0,117510.0,0.5346325]
[1752273615715,0.385358,117520.0,117510.0,0.5346325]
[1752273616020,0.386358,117520.0,117510.0,0.5346325]
[1752273616515,0.386358,117520.0,117510.0,0.90441897]
[1752273617317,0.386358,117520.0,117510.0,0.5346325]
[1752273617617,0.44723795,117520.0,117510.0,0.5346325]
[1752273618117,0.386358,117520.0,117510.0,0.5346325]
[1752273618918,0.44723795,117520.0,117510.0,0.5346325]
[1752273619115,0.386358,117520.0,117510.0,0.5346325]
[1752273619917,0.386358,117520.0,117510.0,1.1755625]
[1752273619918,0.43470414,117520.0,117510.0,1.1755625]
[1752273620722,0.79300534,117520.0,117510.0,1.1755625]
[1752273621826,0.79300534,117520.0,117510.0,0.5309225]
[1752273622125,0.79300534,117520.0,117500.0,0.5736642]
[1752273622126,0.3794725,117510.0,117500.0,0.5736642]
[1752273622324,1.14991181,117510.0,117500.0,0.530933]
[1752273622524,1.14991181,117510.0,117500.0,1.175293]
[1752273622928,1.32003431,117510.0,117500.0,0.814493]
[1752273623128,1.14991181,117510.0,117500.0,0.814493]
[1752273623332,1.32003431,117510.0,117500.0,0.814493]
[1752273623729,1.32103431,117510.0,117500.0,0.814493]
[1752273624030,1.38191426,117510.0,117500.0,0.814493]
[1752273624533,1.46697896,117510.0,117500.0,0.64436]
[1752273624734,1.40609901,117510.0,117500.0,0.64436]
[1752273624928,1.48402717,117510.0,117500.0,0.64436]
[1752273626024,0.33944,117500.0,117490.0,1.2177983]
[1752273626331,0.33944,117500.0,117490.0,0.5309436]
[1752273626332,1.33709702,117500.0,117490.0,0.5309436]
[1752273626530,1.33709702,117500.0,117490.0,1.1749036]
[1752273626730,0.79717355,117500.0,117490.0,1.1749036]
[1752273627822,1.39797697,117500.0,117490.0,0.64396]
[1752273628125,0.33944,117490.0,117480.0,0.57539994]
[1752273628327,0.80865882,117490.0,117480.0,1.21899994]
[1752273628528,0.79717355,117490.0,117480.0,1.21899994]
[1752273628923,0.39053421,117490.0,117480.0,1.22270994]
[1752273629126,0.39053421,117490.0,117480.0,0.94869641]
[1752273629322,0.22639821,117490.0,117480.0,1.59237641]
[1752273629728,0.01704821,117490.0,117480.0,1.59437641]
[1752273629928,0.20935,117500.0,117490.0,0.1738615]
[1752273630228,0.22641973,117500.0,117490.0,0.90444797]
[1752273630429,0.22641973,117500.0,117490.0,0.90344797]
[1752273630630,0.28729968,117500.0,117490.0,0.90444797]
[1752273630926,0.22641973,117500.0,117490.0,0.90444797]
[1752273631126,0.28729968,117500.0,117490.0,0.90444797]
[1752273631332,0.22641973,117500.0,117490.0,0.90344797]
[1752273631730,0.20219973,117500.0,117490.0,0.90344797]
[1752273631931,0.01706973,117500.0,117490.0,0.90344797]
[1752273632228,0.22641973,117500.0,117490.0,0.90344797]
[1752273632430,0.07794968,117500.0,117490.0,0.90344797]
[1752273633227,0.26307968,117500.0,117490.0,0.90344797]
[1752273633732,0.26307968,117500.0,117490.0,1.40344797]
[1752273634035,0.26307968,117500.0,117490.0,1.40544797]
[1752273634733,0.28729968,117500.0,117490.0,1.40744797]
[1752273636033,0.27022995,117500.0,117490.0,1.40744797]
[1752273636228,0.20935,117500.0,117490.0,1.40844797]
[1752273638229,0.18513,117500.0,117490.0,1.40844797]
[1752273638433,0.33944,117510.0,117500.0,0.173847]
[1752273638733,0.42182414,117510.0,117500.0,1.177367]
[1752273638932,0.78012534,117510.0,117500.0,1.177367]
[1752273639936,0.78012534,117510.0,117500.0,1.54715347]
[1752273640133,0.78012534,117510.0,117500.0,1.178367]
[1752273642136,0.78012534,117510.0,117500.0,1.179367]
[1752273643244,0.79727721,117510.0,117500.0,1.179367]
[1752273644439,0.79727721,117510.0,117500.0,0.532937]
[1752273644639,1.16706368,117510.0,117500.0,1.175017]
[1752273644841,1.41354958,117510.0,117500.0,0.532937]
[1752273645041,1.33718618,117510.0,117500.0,0.172137]
[1752273645244,1.33718618,117510.0,117500.0,0.644]
[1752273645443,1.41354958,117510.0,117500.0,0.644]
[1752273645643,1.41354958,117510.0,117500.0,0.74518735]
[1752273646143,1.32003431,117510.0,117500.0,0.57505035]
[1752273646344,1.32003431,117510.0,117500.0,0.74518735]
[1752273646345,1.42694307,117510.0,117500.0,0.74518735]
[1752273646647,0.33607,117500.0,117490.0,1.3006714]
[1752273646848,1.22290058,117500.0,117490.0,1.3004714]
[1752273647441,1.22290058,117500.0,117490.0,1.257934]
[1752273647442,1.28398778,117500.0,117490.0,1.257934]
[1752273647646,1.20762901,117500.0,117490.0,1.257934]
[1752273648042,1.20862901,117500.0,117490.0,1.257934]
[1752273650748,1.20862901,117500.0,117490.0,0.616014]
[1752273650952,1.37876601,117500.0,117490.0,0.5734766]
[1752273651146,1.37876601,117500.0,117490.0,1.2149166]
[1752273651347,1.20862901,117500.0,117490.0,1.2149166]
[1752273651649,1.37876601,117500.0,117490.0,1.2149166]
[1752273652346,1.38822955,117500.0,117490.0,1.2149166]
[1752273652646,1.37976601,117500.0,117490.0,1.2149166]
[1752273652847,1.37976601,117500.0,117490.0,1.1721819]
[1752273653152,1.31867881,117500.0,117490.0,1.1721819]
[1752273653352,1.14854181,117500.0,117490.0,1.1721819]
[1752273654648,0.77875534,117500.0,117490.0,1.1721819]
[1752273654853,0.85513991,117500.0,117490.0,1.1721819]
[1752273655547,1.17074141,117500.0,117490.0,1.1721819]
[1752273656143,0.85513991,117500.0,117490.0,1.1721819]
[1752273656851,1.17074141,117500.0,117490.0,1.1721819]
[1752273657450,1.34087841,117500.0,117490.0,1.1721819]
[1752273660256,1.34087841,117500.0,117490.0,0.5309419]
[1752273660448,0.1701514,117490.0,117480.0,0.66047974]
[1752273660655,0.90114704,117490.0,117480.0,1.30067974]
[1752273660956,1.1770641,117490.0,117480.0,0.53265644]
[1752273661156,1.25944824,117490.0,117480.0,1.17305644]
[1752273661553,1.25944824,117490.0,117480.0,0.36250234]
[1752273661758,1.26044824,117490.0,117480.0,0.64202234]
[1752273662055,1.33683281,117490.0,117480.0,0.00170234]
[1752273662652,1.26044824,117490.0,117480.0,0.00170234]
[1752273662846,1.32154938,117490.0,117480.0,0.00170234]
[1752273663046,1.26044824,117490.0,117480.0,0.17186824]
[1752273663257,1.32154552,117490.0,117480.0,0.17186824]
[1752273663550,0.77469534,117490.0,117480.0,0.84826974]
[1752273663956,0.83578931,117490.0,117480.0,0.84826974]
[1752273664755,0.83578931,117490.0,117480.0,0.53266824]
[1752273665158,0.77469534,117490.0,117480.0,0.53266824]
[1752273666157,1.09029684,117490.0,117480.0,0.53266824]
[1752273666459,1.15138222,117490.0,117480.0,0.53266824]
[1752273666754,0.83578072,117490.0,117480.0,0.53266824]
[1752273667261,0.77469534,117490.0,117480.0,0.53266824]
[1752273670154,0.78743676,117490.0,117480.0,0.90628885]
[1752273670856,0.78743676,117490.0,117480.0,0.53637824]
[1752273672662,0.75339076,117490.0,117480.0,0.53637824]
[1752273672857,0.8357749,117490.0,117480.0,0.53637824]
[1752273673059,0.77469534,117490.0,117480.0,0.53637824]
[1752273674060,0.85107991,117490.0,117480.0,0.53637824]
[1752273674758,0.85107991,117490.0,117480.0,0.53266824]
[1752273675567,0.77469534,117490.0,117480.0,0.53266824]
[1752273676763,0.85107991,117490.0,117480.0,0.53266824]
[1752273685973,0.77469534,117490.0,117480.0,0.53266824]
[1752273687679,1.09033504,117490.0,117480.0,0.53266824]
[1752273688075,1.26048644,117490.0,117480.0,0.53266824]
[1752273688285,1.09033504,117490.0,117480.0,0.53266824]
[1752273688486,0.77469534,117490.0,117480.0,0.53266824]
[1752273688685,1.09033504,117490.0,117480.0,0.53266824]
[1752273689383,1.26048644,117490.0,117480.0,0.53266824]
[1752273689584,1.33687101,117490.0,117480.0,0.53266824]
[1752273689787,1.16671961,117490.0,117480.0,0.53266824]
[1752273690282,1.33687101,117490.0,117480.0,1.17006824]
[1752273691283,1.33687101,117490.0,117470.0,0.5311773]
[1752273691284,0.2964359,117480.0,117470.0,1.168497]
[1752273691488,0.1701804,117470.0,117460.0,0.6162771]
[1752273691688,1.32529216,117470.0,117460.0,0.8074635]
[1752273691987,1.26416544,117470.0,117460.0,0.8074635]
[1752273692788,1.34055001,117470.0,117460.0,0.8074635]
[1752273692992,1.34055001,117470.0,117460.0,0.1701835]
[1752273693388,1.34055001,117470.0,117460.0,0.8073035]
[1752273693693,1.17036961,117470.0,117460.0,1.1681035]
[1752273694690,1.23947306,117470.0,117460.0,1.1681035]
[1752273694893,1.23947306,117470.0,117460.0,1.1701035]
[1752273695192,1.16308849,117470.0,117460.0,1.1701035]
[1752273697190,1.23947306,117470.0,117460.0,1.1701035]
[1752273697395,1.23947306,117470.0,117460.0,1.1721035]
[1752273700396,0.84744879,117470.0,117460.0,1.5329035]